Department Family,Entity,Date,Expenses Type,Expense Area,Supplier,Transaction Number, Total ,,
Department of Health,The Christie NHS Foundation Trust,21/12/2017,GMHPTC,04c Programme Management Office,AKESO AND COMPANY LIMITED,0000570512," 29,096.47 ",,
Department of Health,The Christie NHS Foundation Trust,21/12/2017,Drugs,011 Drugs,ALCURA UK LIMITED,0000570139," 2,774,082.78 ",,
Department of Health,The Christie NHS Foundation Trust,21/12/2017,Drugs,011 Drugs,ALCURA UK LIMITED,0000570140,"-88,413.74 ",,
Department of Health,The Christie NHS Foundation Trust,21/12/2017,Drugs,011 Drugs,ALCURA UK LIMITED,0000570208," 60,994.39 ",,
Department of Health,The Christie NHS Foundation Trust,21/12/2017,Drugs,011 Drugs,ALCURA UK LIMITED,0000570138," 167,512.53 ",,
Department of Health,The Christie NHS Foundation Trust,21/12/2017,Drugs,011 Drugs,BAXTER HEALTHCARE LTD,0000568841," 364,503.18 ",,
Department of Health,The Christie NHS Foundation Trust,21/12/2017,Drugs,011 Drugs,BAXTER HEALTHCARE LTD,0000568840," 421,347.44 ",,
Department of Health,The Christie NHS Foundation Trust,21/12/2017,Drugs,011 Drugs,BAXTER HEALTHCARE LTD,0000569046," 418,610.03 ",,
Department of Health,The Christie NHS Foundation Trust,07/12/2017,Drugs,011 Drugs,BAXTER HEALTHCARE LTD,0000568842," 27,341.86 ",,
Department of Health,The Christie NHS Foundation Trust,01/12/2017,Drugs,011 Drugs,BAXTER HEALTHCARE LTD,0000571011," 336,207.60 ",,
Department of Health,The Christie NHS Foundation Trust,07/12/2017,Proton Beam Development (PBT),18 Capital,BERTHOLD TECHNOLOGIES,0000566875," 35,149.62 ",,
Department of Health,The Christie NHS Foundation Trust,14/12/2017,PET Scans- Oct-17,14 Christie Medical Physics,CENTRAL MCR  UNIV HOSP NHS FOUNDATION TR,0000568466," 109,538.00 ",,
Department of Health,The Christie NHS Foundation Trust,21/12/2017,Education & Training,12 Other Income Levies and Grants,CENTRAL MCR  UNIV HOSP NHS FOUNDATION TR,0000541171," 63,756.00 ",,
Department of Health,The Christie NHS Foundation Trust,07/12/2017,Medical Equipment Maintenance Contract,01 Cancer Centre Services,CPP FACILITIES LLP,0000568127," 207,428.12 ",,
Department of Health,The Christie NHS Foundation Trust,21/12/2017,Medical Equipment,01 Cancer Centre Services,DRAEGER MEDICAL UK LIMITED,0000569518," 45,720.00 ",,
Department of Health,The Christie NHS Foundation Trust,15/12/2017,Library system,07 School of Oncology,ELSEVIER LTD,0000567995," 28,071.83 ",,
Department of Health,The Christie NHS Foundation Trust,21/12/2017,Childcare Voucher - Dec 17,09 Human Resources,FIDELITI LIMITED,0000570332," 33,309.83 ",,
Department of Health,The Christie NHS Foundation Trust,21/12/2017,IT Equipment,06 Finance & Business Development,HP INC.UK LIMITED,0000569750," 32,677.92 ",,
Department of Health,The Christie NHS Foundation Trust,21/12/2017,Proton Beam Development (PBT),18 Capital,INTERSERVE CONSTRUCTION LTD,0000570424," 1,837,522.92 ",,
Department of Health,The Christie NHS Foundation Trust,14/12/2017,Proton Beam Development (PBT),18 Capital,INTERSERVE ENGINEERING SERVICES LTD,0000568246," 30,335.34 ",,
Department of Health,The Christie NHS Foundation Trust,14/12/2017,Proton Beam Development (PBT),18 Capital,MACE LTD,0000563841," 28,926.00 ",,
Department of Health,The Christie NHS Foundation Trust,21/12/2017,Proton Beam Development (PBT),18 Capital,MACE LTD,0000569429," 33,482.40 ",,
Department of Health,The Christie NHS Foundation Trust,14/12/2017,Proton Beam Development (PBT),18 Capital,MACE LTD,0000566641," 34,309.20 ",,
Department of Health,The Christie NHS Foundation Trust,14/12/2017,Drugs,011 Drugs,MID CHESHIRE HOSPITALS NHS FT,0000568270," 76,292.44 ",,
Department of Health,The Christie NHS Foundation Trust,14/12/2017,Drugs,011 Drugs,MID CHESHIRE HOSPITALS NHS FT,0000568274," 76,056.06 ",,
Department of Health,The Christie NHS Foundation Trust,21/12/2017,Blood Products,02 Cancer Networked Services,NHS BLOOD AND TRANSPLANT,0000569648," 30,368.84 ",,
Department of Health,The Christie NHS Foundation Trust,15/12/2017,Blood Products,02 Cancer Networked Services,NHS BLOOD AND TRANSPLANT,0000570543," 178,854.08 ",,
Department of Health,The Christie NHS Foundation Trust,15/12/2017,NHS Litigation (NHSLA),06 Finance & Business Development,NHS LITIGATION AUTHORITY,0000570548," 73,421.70 ",,
Department of Health,The Christie NHS Foundation Trust,07/12/2017,Stock for all Wards & Departments,All Wards and Departments,NHS SUPPLY CHAIN,0000569131," 39,126.76 ",,
Department of Health,The Christie NHS Foundation Trust,21/12/2017,Stock for all Wards & Departments,All Wards and Departments,NHS SUPPLY CHAIN,0000570404," 45,690.81 ",,
Department of Health,The Christie NHS Foundation Trust,14/12/2017,Stock for all Wards & Departments,All Wards and Departments,NHS SUPPLY CHAIN,0000569840," 37,864.95 ",,
Department of Health,The Christie NHS Foundation Trust,14/12/2017,Linear Accelerator Building Works,18 Capital,PHILIPS HEALTHCARE,0000568819," 359,951.18 ",,
Department of Health,The Christie NHS Foundation Trust,14/12/2017,Support Contract - Dec-17 to Nov-18,02 Cancer Networked Services,PHILIPS HEALTHCARE,0000568518," 46,592.75 ",,
Department of Health,The Christie NHS Foundation Trust,14/12/2017,Linear Accelerator Building Works,02 Cancer Networked Services,PHILIPS HEALTHCARE,0000566722,"-50,186.86 ",,
Department of Health,The Christie NHS Foundation Trust,21/12/2017,AQuA 2017/2018 membership fees,04 Trust Administration,SALFORD ROYAL HOSP NHS FT,0000553316," 40,000.00 ",,
Department of Health,The Christie NHS Foundation Trust,21/12/2017,Medway System Support - Oct-17,06 Finance & Business Development,SYSTEM C HEALTHCARE,0000570100," 28,416.00 ",,
Department of Health,The Christie NHS Foundation Trust,21/12/2017,Medway System Support - Nov-17,06 Finance & Business Development,SYSTEM C HEALTHCARE,0000569495," 28,416.00 ",,
Department of Health,The Christie NHS Foundation Trust,07/12/2017,Blood Products,02 Cancer Networked Services,THE ANTHONY NOLAN BONE MARROW,0000563543," 37,745.62 ",,
Department of Health,The Christie NHS Foundation Trust,07/12/2017,Blood Products,02 Cancer Networked Services,THE ANTHONY NOLAN BONE MARROW,0000565964," 34,767.14 ",,
Department of Health,The Christie NHS Foundation Trust,21/12/2017,Blood Products,02 Cancer Networked Services,THE ANTHONY NOLAN BONE MARROW,0000569543," 61,303.16 ",,
Department of Health,The Christie NHS Foundation Trust,07/12/2017,Blood Products,02 Cancer Networked Services,THE ANTHONY NOLAN BONE MARROW,0000567907," 26,633.16 ",,
Department of Health,The Christie NHS Foundation Trust,07/12/2017,Patient Testing Service ,01 Cancer Centre Services,THE CHRISTIE PATHOLOGY PARTNERSHIP LLP,0000568122," 363,727.73 ",,
Department of Health,The Christie NHS Foundation Trust,21/12/2017,Patient Testing Service ,01 Cancer Centre Services,THE CHRISTIE PATHOLOGY PARTNERSHIP LLP,0000569927," 363,727.73 ",,
Department of Health,The Christie NHS Foundation Trust,14/12/2017,Consultancy Fees Anaesthetics - Nov-17,01 Cancer Centre Services,UNI HOSP OF SOUTH MANCHESTER NHS FT,0000568473," 27,148.17 ",,
Department of Health,The Christie NHS Foundation Trust,14/12/2017,Critical Care - Nov-17,01 Cancer Centre Services,UNI HOSP OF SOUTH MANCHESTER NHS FT,0000568476," 29,638.25 ",,
Department of Health,The Christie NHS Foundation Trust,21/12/2017,Education & Training,12 Other Income Levies and Grants,UNI HOSP OF SOUTH MANCHESTER NHS FT,0000564348," 71,275.00 ",,
Department of Health,The Christie NHS Foundation Trust,07/12/2017,40% Fourth Room Equipment,18 Capital,VARIAN MEDICAL SYSTEMS UK LTD,0000567642," 200,000.00 ",,
Department of Health,The Christie NHS Foundation Trust,21/12/2017,Energy Contract - Oct-17,08 Estates & Facilities,VEOLIA ENERGY &UTILITY SERVICES UK PLC,0000569194," 232,183.12 ",,
Department of Health,The Christie NHS Foundation Trust,07/12/2017,Christie @ Wigan - Nov-17,02 Cancer Networked Services,WRIGHTINGTON WIGAN AND LEIGH NHS FT,0000568519," 231,448.00 ",,
Department of Health,The Christie NHS Foundation Trust,07/12/2017,Insurance,06 Finance & Business Development,ZURICH INSURANCE PLC,0000569146," 72,863.10 ",,
